Cogmind - Beta 10.2 @@@ ROGUE MODE // 2021.06.22 @ 22:48:02 Player: Finestep Result: Destroyed by H-77 Assassin with Coil Gun Performance ------------- Evolutions (7) 3500 Regions Visited (26) 5200 Robots Destroyed (441) 2205 Value Destroyed (19076) 19076 Prototype IDs (29) 580 Alien Tech Used (0) 0 Bonus (9697) 9697 TOTAL SCORE: 40258 Bonus ------- High Alert Combat Kills 2833 Follower Combat Kills 4006 Entered Garrisons 800 Used RIF Installer 2000 Network Hubs Disabled 600 A7 Reached Mainframe 300 Met R17 at Cetus 500 Friendly Fire -1342 Cogmind --------- Core Integrity 0/1300 Matter 151/300 Energy 98/100 System Corruption 5% Temperature Cool (0) Movement Core (50) Location -3/Research Parts ------- > --- POWER (2) -------- (None) > --- PROPULSION (6) --- Heavy Treads > --- UTILITY (10) ----- Spectral Analyzer Improved Hacking Suite Improved Hacking Suite Improved Hacking Suite > --- WEAPON (3) ------- (None) > --- INVENTORY (4) ---- Light Antimatter Reactor Combat Antigrav System EMDS Peak State ------------ > --- POWER ------------ Quantum Reactor Quantum Reactor > --- PROPULSION ------- Centrium Heavy Treads Centrium Heavy Treads > --- UTILITY ---------- High-capacity Storage Unit High-capacity Storage Unit High-capacity Storage Unit Advanced Terrain Scanner Improved Terrain Scan Processor Advanced Targeting Computer Armor Integrity Analyzer Centrium Medium Armor Plating Centrium Medium Armor Plating EM Dispersion Field > --- WEAPON ----------- Improved KE Penetrator Improved KE Penetrator Chainsword > --- INVENTORY -------- Micro Fission Core Quantum Reactor High-capacity Matter Pod Long-range Sensor Array Advanced Signal Interpreter Improved Weapon Cycler Advanced Shield Generator Improved Hacking Suite Improved Hacking Suite Relay Coupler [NC] Relay Coupler [Swarmer] Relay Coupler [Brawler] Relay Coupler [Sentry] Relay Coupler [Demolisher] High-powered Tractor Beam Thief Drone Bay EMDS EMDS Cooled Particle Cannon Heavy Shock Bomb Launcher Long-range Missile Launcher Smartbomb Launcher Improved Remote Datajack Improved Remote Datajack [Rating: 130] Favorites ----------- Power Quantum Reactor Engine Cooled Ion Engine Power Core Micro Fission Core Reactor Quantum Reactor Propulsion Light Treads Treads Light Treads Leg Carbon-fiber Leg Wheel Armored Wheel Hover Unit Improved Antigrav System Flight Unit Field Propulsion Array Utility High-capacity Storage Unit Device System Backup Module Storage High-capacity Storage Unit Processor Advanced Targeting Computer Hackware Relay Coupler [Grunt] Protection Hardened Light Armor Plating Weapon Improved KE Penetrator Energy Gun Precision Shock Rifle Energy Cannon Cooled Particle Cannon Ballistic Gun Improved KE Penetrator Launcher Missile Launcher Special Weapon Improved Remote Datajack Slashing Weapon Chainsword Special Melee Weapon Datajack Build | -11 -10 -10 -9 -9 -9 -8 -8 -8 -8 -7 -7 -7 -7 -6 -6 -5 -5 -5 -5 -5 -5 -5 -4 -4 -4 -3 ------- Run | Scr Mat Min Mat Min Exi Min Mat Sto Gar Fac Gar Fac Gar Fac Gar Fac Was Fac Ext Cet Arc Hub Fac Was Fac Res Slots Evolved 14 | . . . 2 . . . 2 . . 2 . . . 2 . 2 . . . . . . 2 . . 2 Power 1 | . . . . . . . . . . . . . . . . 1 . . . . . . . . . . Propulsion 4 | . . . . . . . . . . . . . . 1 . . . . . . . . 1 . . 2 Utility 8 | . . . 1 . . . 2 . . 2 . . . 1 . 1 . . . . . . 1 . . . Weapon 1 | . . . 1 . . . . . . . . . . . . . . . . . . . . . . . Parts Attached 535 | 6 16 5 21 . . 5 31 34 19 33 29 29 31 36 28 8 11 55 19 16 11 16 12 3 50 11 Power 40 | 1 1 . 4 . . . 3 2 . 1 1 . 2 2 2 1 3 7 4 1 . 3 . . 2 . Engine 15 | 1 . . 4 . . . 3 2 . 1 . . 1 1 1 . 1 . . . . . . . . . Core 16 | . 1 . . . . . . . . . 1 . 1 1 1 1 . 6 3 . . 1 . . . . Reactor 9 | . . . . . . . . . . . . . . . . . 2 1 1 1 . 2 . . 2 . Propulsion 74 | 2 2 . 6 . . 2 9 7 6 2 2 2 4 2 9 1 . 6 1 2 . 1 1 . 3 4 Treads 52 | 2 2 . 4 . . 2 9 5 3 . 2 2 2 . 4 1 . 6 1 2 . 1 1 . 1 2 Leg 5 | . . . . . . . . . . . . . . . 4 . . . . . . . . . 1 . Wheel 15 | . . . 2 . . . . 2 3 2 . . 2 2 1 . . . . . . . . . 1 . Hover 1 | . . . . . . . . . . . . . . . . . . . . . . . . . . 1 Flight 1 | . . . . . . . . . . . . . . . . . . . . . . . . . . 1 Utility 196 | 1 7 . 2 . . . 10 6 4 14 14 13 12 15 7 2 5 29 2 3 6 9 8 2 21 4 Device 70 | . . . . . . . 2 2 1 4 3 3 3 6 2 1 2 15 1 1 4 3 3 1 11 2 Storage 13 | 1 5 . 1 . . . . . . 1 . . 1 . . . . 3 . . . 1 . . . . Processor 13 | . 1 . . . . . 2 . 1 1 . . . . . . 1 3 . . . . 3 . . 1 Hackware 36 | . . . . . . . . . . 3 5 6 2 6 2 1 . 3 . . . 1 . 1 5 1 Protection 64 | . 1 . 1 . . . 6 4 2 5 6 4 6 3 3 . 2 5 1 2 2 4 2 . 5 . Artifact . | . . . . . . . . . . . . . . . . . . . . . . . . . . . Weapon 225 | 2 6 5 9 . . 3 9 19 9 16 12 14 13 17 10 4 3 13 12 10 5 3 3 1 24 3 Energy Gun 36 | 1 4 . . . . . 1 11 3 3 1 2 3 3 2 . . . . . . . . . 1 1 Energy Cannon 19 | . . . . . . . . . . . . . . 1 . 1 . 4 1 1 . 1 . . 8 2 Ballistic Gun 98 | 1 1 3 8 . . 3 8 4 4 5 4 7 4 . 4 2 1 9 11 7 4 1 1 . 6 . Ballistic Cannon . | . . . . . . . . . . . . . . . . . . . . . . . . . . . Launcher 18 | . . . 1 . . . . 4 1 1 2 1 2 3 . . . . . 2 . . . . 1 . Special Weapon 35 | . 1 2 . . . . . . . 1 3 4 4 8 3 1 2 . . . . 1 1 1 3 . Impact Weapon . | . . . . . . . . . . . . . . . . . . . . . . . . . . . Slashing Weapon 17 | . . . . . . . . . 1 4 2 . . 2 1 . . . . . 1 . 1 . 5 . Piercing Weapon . | . . . . . . . . . . . . . . . . . . . . . . . . . . . Special Melee Weapon 2 | . . . . . . . . . . 2 . . . . . . . . . . . . . . . . Unidentified Prototypes 21 | . . . 2 . . . 3 3 . 2 . . . 1 . . . 2 . 3 . 1 1 . . 3 Parts Lost 90 | . 5 1 2 . . 3 9 . . 5 3 5 3 3 3 . . 7 2 1 . 6 . . 23 9 Power 8 | . 1 . 2 . . . . . . . . . 1 . 1 . . . . . . . . . 3 . Propulsion 23 | . . . . . . 2 2 . . 1 1 2 2 1 . . . . 1 1 . 2 . . 3 5 Utility 25 | . 1 . . . . . 3 . . 1 . 1 . 1 . . . 4 . . . 2 . . 9 3 Weapon 34 | . 3 1 . . . 1 4 . . 3 2 2 . 1 2 . . 3 1 . . 2 . . 8 1 Highest Loss Streak 18 | . 2 1 1 . . 3 3 . . 4 2 4 1 2 2 . . 2 1 1 . 4 . . 18 5 Average Slot Usage (%) 95 | . 98 99 99 100 100 99 99 100 99 99 96 98 98 94 98 95 85 92 93 93 93 88 88 89 86 32 Engine 3 | . 8 . 8 11 11 11 9 9 9 7 6 . 3 4 2 5 1 . . . . . . . . . Core 3 | . 5 14 1 . . . . . . . . 7 2 1 3 5 2 3 10 5 5 5 . . . . Reactor 1 | . . . . . . . . . . . . . . . . . 6 7 . 5 5 5 10 10 9 . Treads 11 | . 27 28 16 22 22 21 18 12 13 . 5 14 11 . 5 12 11 10 10 11 11 10 10 10 9 1 Leg 1 | . . . . . . . . . . . . . . . 12 . . . . . . . . . . 1 Wheel 3 | . . . 5 . . . . 5 4 14 9 . 2 15 . . . . . . . . . . . 1 Device 4 | . . . . . . . 5 8 . 5 3 3 . 5 2 10 4 6 9 5 15 7 6 10 7 2 Storage 23 | . 23 28 29 33 33 33 27 27 27 23 23 23 24 26 26 23 23 23 23 23 23 23 18 15 14 . Processor 8 | . 1 . . . . . 3 . 8 15 15 8 7 6 6 5 6 11 17 17 11 8 16 21 16 3 Hackware 3 | . . . . . . . . . . 1 1 10 9 10 6 10 4 7 . . . . . 5 6 16 Protection 5 | . 2 . 3 . . . 9 9 9 7 6 5 10 2 9 . 3 1 1 4 . 6 8 . 3 . Energy Gun 5 | . 13 2 . . . . 1 8 18 11 4 3 3 12 13 . . . . . . . . . . . Ballistic Gun 13 | . 13 24 33 33 33 32 25 18 6 5 9 16 16 . 5 12 11 13 16 14 16 16 9 5 7 . Slashing Weapon 1 | . . . . . . . . . . 2 6 . . 1 . . . . . . . . 2 5 3 . Naked Turns 6 | . . . . . . . . . . . . . . . . . . . . . . . . . 6 . Heaviest Build 223 | 11 72 72 110 110 110 110 123 121 123 125 140 121 145 163 156 153 203 203 174 167 172 223 183 153 180 17 Greatest Support 160 | 40 40 40 40 40 40 40 40 46 40 24 40 40 40 40 70 100 100 100 100 110 110 110 160 160 160 23 Greatest Overweight (x) 52 | 1 1 1 8 2 2 2 6 5 9 5 11 5 12 4 8 2 2 2 2 1 52 2 1 . 1 1 Average Overweight (x) 2 | . . 1 2 2 2 2 2 2 2 4 3 2 3 3 2 1 1 1 1 1 14 1 1 . . . Largest Inventory Capacity 34 | 6 20 20 28 28 28 28 28 28 28 28 28 28 34 34 34 34 34 34 34 34 34 34 34 28 28 4 Average Capacity 28 | 5 13 20 25 28 28 28 28 28 28 28 28 28 29 34 34 34 34 34 34 34 34 34 31 28 27 4 Most Carried 34 | 5 19 20 28 28 28 28 28 28 28 28 28 28 34 34 34 34 34 34 34 34 34 34 32 28 28 4 Average Carried 28 | 2 10 19 22 27 28 27 26 27 27 26 27 25 28 32 33 33 33 33 33 32 33 33 27 27 26 3 Final Capacity 34 | 6 20 20 28 28 28 28 28 28 28 28 28 28 34 34 34 34 34 34 34 34 34 34 28 28 4 4 Final Carried 34 | 5 18 20 28 28 28 26 28 28 28 28 28 28 34 34 34 34 34 34 34 34 34 34 27 28 4 4 Class Distribution -------------------- 23% | Bothacker-Mutant 18% | Bothacker-Gunner 10% | Hauler-Gunner 7% | Hauler-Tank 6% | Hauler-Mutant 4% | Botlord-Mutant 4% | Botlord-Tank 4% | Commander-Mutant 3% | Mutant 3% | Botlord-Gunner 3% | Bothacker-Tank Dominant Class ---------------- Mutant | -10/Materials Hauler-Mutant | -10/Mines Hauler-Gunner | -9/Materials Hauler-Gunner | -9/Mines Hauler-Gunner | -9/Exiles Hauler-Gunner | -8/Mines Hauler-Tank | -8/Materials Hauler-Tank | -8/Storage Hauler-Gunner | -8/Garrison Bothacker-Skirmisher | -7/Factory Bothacker-Mutant | -7/Garrison Bothacker-Mutant | -7/Factory Bothacker-Mutant | -7/Garrison Commander-Mutant | -6/Factory Botlord-Tank | -6/Garrison Botlord-Mutant | -5/Factory Botlord-Mutant | -5/Waste Botlord-Gunner | -5/Factory Bothacker-Gunner | -5/Extension Bothacker-Gunner | -5/Cetus Bothacker-Gunner | -5/Archives Bothacker-Gunner | -5/Hub_04(d) Bothacker-Mutant | -4/Factory Bothacker-Mutant | -4/Waste Bothacker-Mutant | -4/Factory Hacker-Mutant | -3/Research Resources | -11 -10 -10 -9 -9 -9 -8 -8 -8 -8 -7 -7 -7 -7 -6 -6 -5 -5 -5 -5 -5 -5 -5 -4 -4 -4 -3 ----------- Run | Scr Mat Min Mat Min Exi Min Mat Sto Gar Fac Gar Fac Gar Fac Gar Fac Was Fac Ext Cet Arc Hub Fac Was Fac Res Matter Collected 15722 | 272 430 112 839 50 . 158 1244 1031 519 460 507 817 682 573 580 154 377 1938 1058 341 602 1019 16 . 1828 115 Remotely . | . . . . . . . . . . . . . . . . . . . . . . . . . . . Salvage Created 22311 | 76 905 167 973 50 . 197 1835 1951 1327 915 449 677 639 769 660 75 1045 1731 1208 540 577 2707 16 . 2822 . Parts 1034 | 6 43 8 63 2 . 5 109 107 60 57 20 39 28 23 19 3 17 79 58 15 29 124 3 . 117 . Haulers Intercepted 17 | . 2 . 3 . . . 2 4 . 2 . 1 . . . . . 1 . . . 1 . . 1 . Recyclers Shooed 19 | . 1 . 4 . . . 3 2 . . . . . 2 . . . 3 1 . . . . . 3 . Parts Field Recycled . | . . . . . . . . . . . . . . . . . . . . . . . . . . . Retrieved Matter . | . . . . . . . . . . . . . . . . . . . . . . . . . . . Parts Self-Destructed . | . . . . . . . . . . . . . . . . . . . . . . . . . . . Prevented . | . . . . . . . . . . . . . . . . . . . . . . . . . . . Kills | -11 -10 -10 -9 -9 -9 -8 -8 -8 -8 -7 -7 -7 -7 -6 -6 -5 -5 -5 -5 -5 -5 -5 -4 -4 -4 -3 ------- Run | Scr Mat Min Mat Min Exi Min Mat Sto Gar Fac Gar Fac Gar Fac Gar Fac Was Fac Ext Cet Arc Hub Fac Was Fac Res Combat Hostiles Destroyed 307 | . 14 6 19 . . 4 33 29 30 12 14 8 13 8 7 1 4 18 17 6 4 30 . . 30 . Melee 11 | . . . . . . . 1 . . 2 4 . 2 . . . . 1 . . . . . . 1 . Guns 229 | . 14 6 17 . . 4 32 28 13 6 2 7 8 . 4 1 4 14 17 1 4 29 . . 18 . Cannons 6 | . . . . . . . . . . . . . . . . . . 3 . . . . . . 3 . AOE 41 | . . . 2 . . . . 1 16 4 6 1 3 6 . . . . . 1 . 1 . . . . Classes Destroyed 20 | 2 4 2 2 . . 1 . 1 . 4 . . . . 1 . 1 1 1 . . . . . . . Worker 28 | . 2 . . . . . 3 3 . 4 . 1 . 1 . . . 1 . . . 7 1 . 5 . Builder 13 | . . . . . . . . . . 1 . . . . . . . 2 1 . . 4 . . 5 . Tunneler 7 | 2 . 1 . . . . . . . 2 . . . 1 . . . . . . . 1 . . . . Hauler 17 | . 2 . 3 . . . 2 4 . 2 . 1 . . . . . 1 . . . 1 . . 1 . Recycler 31 | 1 2 . 2 . . . 4 5 . 1 . 2 . 4 . . . 3 2 . . 1 . . 4 . Mechanic 1 | . . . . . . . . . . 1 . . . . . . . . . . . . . . . . Operator 18 | . 2 . 1 . . . 2 . . 1 . 1 . . . . . 1 . . 7 2 . . 1 . Watcher 16 | . . . 2 . . . 2 2 . 1 . 4 . . . . . . . 2 . 3 . . . . Swarmer 74 | . . 2 8 . . . 11 8 11 . 9 2 7 6 . . . . 5 . . . . . 5 . Saboteur 1 | . . . . . . . . . . . . . . . . . . 1 . . . . . . . . Grunt 117 | . 14 2 8 . . 3 16 10 12 6 3 1 5 . 4 . 1 2 4 1 . 11 . . 14 . Brawler 7 | . . . . . . . . 1 2 1 . . . . . 1 . 2 . . . . . . . . Duelist 7 | . . . . . . 1 . . 4 . . 1 . . . . . . . . . 1 . . . . Protector 2 | . . . . . . . . . . . . . . . . . . . 1 . . 1 . . . . Sentry 43 | . . . 3 . . . 6 10 2 . 2 1 1 . . . . 2 5 . 4 4 . . 3 . Specialist 3 | . . . . . . . . . . . . . . . 3 . . . . . . . . . . . Hunter 13 | . . . . . . . . . . 1 . 1 . 2 . . . 5 2 . . . . . 2 . Programmer 25 | . . . . . . . . . . 4 1 2 . . . . . 6 . . . 6 . . 6 . Compactor 4 | . . . . . . . . . . . . . . . . . 4 . . . . . . . . . Cetus Guard 5 | . . . . . . . . . . . . . . . . . . . . 5 . . . . . . Lightning 7 | . . . . . . . . . . . . . . . . . . . . . . 7 . . . . Assembled 2 | . . 2 . . . . . . . . . . . . . . . . . . . . . . . . Thug 2 | . . . . 1 . . . . . . . . . . . . . . 1 . . . . . . . Best Kill Streak 12 | 3 3 2 5 . . 3 5 10 7 10 3 5 4 4 2 1 2 6 7 4 3 12 1 . 10 . Combat Bots Only 8 | . 2 2 4 . . 3 4 8 7 4 3 4 4 3 2 1 2 4 5 3 2 4 . . 7 . Max Kills in Single Turn 10 | 1 1 1 1 1 . 1 2 2 3 3 2 2 3 3 1 1 2 2 3 1 2 10 1 . 3 . Gunslinging 1 | . . . . . . . . 1 . . . . . . . . . . 1 . . . . . 1 . Exploded 3 | . . . 1 . . . . 1 3 2 2 1 3 3 . . . . . 1 . 1 . . . . Melee 1 | . . . . . . . 1 . . 1 1 . 1 . . . . 1 . . . . . . 1 . Uniques/NPCs Destroyed . | . . . . . . . . . . . . . . . . . . . . . . . . . . . Combat | -11 -10 -10 -9 -9 -9 -8 -8 -8 -8 -7 -7 -7 -7 -6 -6 -5 -5 -5 -5 -5 -5 -5 -4 -4 -4 -3 -------- Run | Scr Mat Min Mat Min Exi Min Mat Sto Gar Fac Gar Fac Gar Fac Gar Fac Was Fac Ext Cet Arc Hub Fac Was Fac Res Damage Taken 27765 | . 658 316 622 . . 552 1894 1409 591 846 1092 793 926 731 775 85 . 2748 1875 378 84 3761 . . 5061 2568 Core 4007 | . 78 31 69 . . 74 187 229 21 24 93 93 130 100 61 . . 183 209 61 46 182 . . 835 1301 Absorbed by Shields 1198 | . . . . . . . 350 . 16 . . . . . 121 25 . . 173 170 . . . . 343 . Reduced by Siege Mode 318 | . . . . . . . . . . . . . . . . . . 32 . . . 41 . . 245 . Core Remaining (%) 53 | 100 . 56 . . . 64 . . 20 . . . 51 . 81 . . . . . . 31 . . 27 . Volleys Fired 1344 | 4 101 24 80 4 . 20 124 105 60 30 45 75 55 45 61 8 27 118 58 18 34 113 1 7 127 . Largest 3 | 2 2 2 3 3 . 3 3 3 3 3 2 3 3 3 3 3 3 3 3 3 3 3 1 1 3 . Hottest 165 | 70 100 100 66 66 . 66 109 145 145 135 90 111 141 165 165 89 89 99 99 103 105 105 40 40 149 . Shots Fired 3012 | 8 191 39 234 12 . 59 368 272 117 65 57 153 86 70 105 18 49 280 178 24 100 297 1 7 222 . Gun 2739 | 8 190 32 231 12 . 59 368 266 103 62 37 133 71 40 81 15 39 233 177 12 100 291 . 5 174 . Cannon 75 | . . . . . . . . . . . . . . . . 1 . 34 1 1 . . . . 38 . Launcher 56 | . . . 3 . . . . 6 14 3 6 . 2 6 . . . . . 11 . . . . 5 . Special 142 | . 1 7 . . . . . . . . 14 20 13 24 24 2 10 13 . . . 6 1 2 5 . Kinetic 2276 | 4 100 28 231 12 . 59 354 206 21 18 14 111 42 . 31 15 39 233 177 12 100 291 . 5 173 . Thermal 199 | 4 91 11 . . . . 14 14 . . . 15 . . . 1 . 34 1 1 . . . . 13 . Explosive 36 | . . . 3 . . . . 2 14 3 6 . 2 6 . . . . . . . . . . . . Electromagnetic 367 | . . . . . . . . 50 82 44 23 7 29 40 50 . . . . 11 . . . . 31 . Robot Hit Streak 39 | 6 11 7 11 4 . 16 24 25 39 14 6 11 11 18 19 3 13 23 31 16 11 36 2 9 29 . Robot Miss Streak 5 | . 3 2 5 1 . 2 3 5 5 3 2 4 5 3 3 4 3 3 2 1 3 3 . . 3 . Penetration Max 1 | . . . . . . . . . . 1 . . 1 . 1 . 1 1 1 . 1 1 . . 1 . Secondary Targets 35 | . 1 1 1 . . 2 3 3 . . . 1 2 . . . 2 2 6 1 . 4 . . 6 . Max Gunslinging Chain 2 | . 1 1 1 . . 1 1 1 . . . 1 1 . . . 1 1 2 1 . 1 . . 2 . Shots Hit Robots 2118 | 6 132 24 142 7 . 47 245 182 100 62 40 100 61 45 84 8 34 196 122 14 55 209 2 15 186 . Core Hits 875 | 4 44 11 53 3 . 13 89 75 73 37 17 29 33 23 27 1 8 54 52 19 29 98 1 1 80 1 Critical Hits 117 | . . 1 1 . . 1 1 3 3 4 . . . . . . . 12 13 2 15 39 . . 22 . Critical Kills 35 | . . . . . . . . 1 . 3 . . . . . . . 4 2 . 4 15 . . 6 . Critical Parts Destroyed 78 | . . 1 1 . . 1 1 2 2 1 . . . . . . . 8 9 2 10 24 . . 16 . Melee Attacks 130 | . . . . . . . . . 24 37 15 . . 9 12 . . . . . . . 5 8 20 . Impact . | . . . . . . . . . . . . . . . . . . . . . . . . . . . Slashing 120 | . . . . . . . . . 24 27 15 . . 9 12 . . . . . . . 5 8 20 . Piercing . | . . . . . . . . . . . . . . . . . . . . . . . . . . . Sneak Attacks 20 | . . . . . . . . . . 4 . . . 2 . . . . . . . . 1 8 5 . Combat Hostiles 8 | . . . . . . . . . . . . . . . . . . . . . . . . 8 . . Follow-up Attacks . | . . . . . . . . . . . . . . . . . . . . . . . . . . . Damage Inflicted 51140 | 75 1550 263 1570 82 . 557 3222 3134 5152 1807 1423 1484 1284 1839 1892 130 748 4182 3244 1171 1583 6916 144 558 7111 19 Guns 35613 | 75 1539 236 1376 82 . 557 3203 2958 1229 647 391 1278 1010 631 869 130 748 3801 3244 256 1583 4995 . 125 4650 . Cannons 1543 | . . . . . . . . . . . . . . . . . . 381 . . . . . . 1162 . Explosions 9298 | . . . 185 . . . . 176 2236 914 865 206 237 976 69 . . . . 915 . 1904 . . 615 . Melee 4518 | . . . . . . . . . 1687 246 167 . . 232 954 . . . . . . . 126 433 673 . Ramming 168 | . 11 27 9 . . . 19 . . . . . 37 . . . . . . . . 17 18 . 11 19 Kinetic 30493 | 51 902 226 1376 82 . 557 3143 2174 159 228 92 907 653 . 434 130 748 3801 3244 256 1583 4995 . 125 4627 . Thermal 2720 | 24 637 10 . . . . 60 263 419 188 . 179 . 155 69 . . 381 . 20 . . . . 315 . Explosive 4892 | . . . 185 . . . . 35 1817 726 865 206 237 821 . . . . . . . . . . . . Electromagnetic 8349 | . . . . . . . . 662 1070 419 299 192 357 631 435 . . . . 895 . 1904 . . 1485 . Impact . | . . . . . . . . . . . . . . . . . . . . . . . . . . . Slashing 4518 | . . . . . . . . . 1687 246 167 . . 232 954 . . . . . . . 126 433 673 . Piercing . | . . . . . . . . . . . . . . . . . . . . . . . . . . . Highest Corruption 18 | . . . . . . . . 4 4 5 5 1 1 1 1 . 8 16 17 18 18 2 . 5 17 5 Average Corruption 5 | . . . . . . . . 2 4 4 3 1 1 1 1 . 8 9 16 17 10 1 . 3 6 2 Corruption Purged 30 | . . . . . . . . . . . 5 . 1 1 . . . 5 . . 18 . . . . . Effects 614 | . . . . . . . . 27 58 16 24 . 9 . 15 . 14 128 128 29 81 5 . 3 70 7 Message Errors 113 | . . . . . . . . 8 13 5 3 . 5 . 6 . 4 16 18 5 15 1 . 1 11 2 Matter Fused 112 | . . . . . . . . 2 13 5 6 . . . . . 5 28 21 6 11 . . 2 13 . Heat Flow Errors 57 | . . . . . . . . 2 12 1 4 . . . . . . 11 10 2 7 . . . 6 2 Energy Discharges 56 | . . . . . . . . 2 5 1 3 . 1 . 5 . 1 9 10 3 10 1 . . 3 2 Data Loss (minor) 63 | . . . . . . . . 1 9 . 4 . 2 . 2 . 2 12 12 4 10 . . . 4 1 Data Loss (major) 23 | . . . . . . . . . . . 2 . . . . . . 6 5 2 5 . . . 3 . Misfires 16 | . . . . . . . . . . . 1 . . . . . . 2 9 . 1 . . . 3 . Alerts 1 | . . . . . . . . . . . . . . . . . . . . . 1 . . . . . Misdirections 30 | . . . . . . . . . . . . . . . . . . 8 17 2 . . . . 3 . Targeting Errors 126 | . . . . . . . . 8 6 3 1 . 1 . 2 . 2 35 23 3 18 2 . . 22 . Weapon Failures 17 | . . . . . . . . 4 . 1 . . . . . . . 1 3 2 3 1 . . 2 . Overload Shots 8 | . . . . . . . . . . . . . . . . . . 5 1 1 . . . . 1 . Effects 3 | . . . . . . . . . . . . . . . . . . 1 . . . . . . 2 . Meltdown 3 | . . . . . . . . . . . . . . . . . . 1 . . . . . . 2 . Overflow Damage 941 | . . 12 4 . . . . 3 386 22 51 . . 178 . . . 32 . . . 73 . . 180 . Projectiles 59 | . . . . . . . . . . . . . . . . . . 32 . . . . . . 27 . Explosions 325 | . . . 4 . . . . 3 55 22 51 . . 104 . . . . . . . 73 . . 13 . Melee 557 | . . 12 . . . . . . 331 . . . . 74 . . . . . . . . . . 140 . Knockbacks . | . . . . . . . . . . . . . . . . . . . . . . . . . . . Impact . | . . . . . . . . . . . . . . . . . . . . . . . . . . . Kinetic . | . . . . . . . . . . . . . . . . . . . . . . . . . . . Secondary . | . . . . . . . . . . . . . . . . . . . . . . . . . . . Self-Inflicted Damage 392 | . . . . . . . . 36 90 49 59 . . 133 . . . . . . . 16 . . . 9 Shots 12 | . . . . . . . . 2 3 1 1 . . 3 . . . . . . . 2 . . . . Rammed 20 | . 4 1 1 . . . 3 2 . . . . 1 . . . . . . . . 2 1 . 1 4 Targets Rammed 24 | . 5 1 1 . . . 4 2 . . . . 3 . . . . . . . . 2 1 . 1 4 Kicked . | . . . . . . . . . . . . . . . . . . . . . . . . . . . Crushed 4 | . 1 . . . . . 1 . . . . . 2 . . . . . . . . . . . . . Highest Temperature 574 | 36 96 90 61 . . 135 288 404 256 227 208 266 154 300 156 36 356 421 348 209 336 42 21 17 574 236 Average Temperature 81 | 19 30 28 13 . . 69 51 116 87 57 70 57 49 82 40 14 170 99 119 47 130 4 15 10 139 113 Received Heat Transfer 5509 | . 366 238 207 . . 144 675 504 189 171 246 54 249 18 181 33 . 549 346 26 9 378 . . 728 198 Effects 27 | . . . . . . . . 9 1 . . . . 3 . . 1 . . . 1 . . . 12 . Shutdowns 3 | . . . . . . . . 1 . . . . . . . . . . . . . . . . 2 . Energy Bleed 3 | . . . . . . . . . 1 . . . . . . . 1 . . . 1 . . . . . Interference 17 | . . . . . . . . 8 . . . . . 3 . . . . . . . . . . 6 . Matter Decay 2 | . . . . . . . . . . . . . . . . . . . . . . . . . 2 . Short Circuit 1 | . . . . . . . . . . . . . . . . . . . . . . . . . 1 . Damage (minor) 1 | . . . . . . . . . . . . . . . . . . . . . . . . . 1 . Siege Activations 17 | . . . . . . . . . . . . . . . . . . 3 . . . 5 . . 9 . Total Turns 477 | . . . . . . . . . . . . . . . . . . 107 . . . 209 . . 161 . Longest Duration 100 | . . . . . . . . . . . . . . . . . . 65 . . . 100 . . 33 . Robots Corrupted 27 | . . . . . . . . . 2 . 2 1 2 4 3 . . . . 4 . 1 . . 8 . Combat Hostiles 20 | . . . . . . . . . 1 . 2 . . 2 3 . . . . 4 . . . . 8 . Parts Fried 76 | . . . . . . . . 5 3 3 2 3 1 8 9 . . 1 . 4 . 23 . . 14 . Impact Corruptions 1 | . . 1 . . . . . . . . . . . . . . . . . . . . . . . . Robots Melted . | . . . . . . . . . . . . . . . . . . . . . . . . . . . Combat Hostiles . | . . . . . . . . . . . . . . . . . . . . . . . . . . . Parts Melted 6 | 1 1 . . . . . . . . . 2 1 . . . . . . 1 . . . . . . . Heat Transferred 4348 | 74 1557 25 . . . . 111 322 550 200 . 407 . 150 50 . . 481 . 50 . . . . 371 . Parts Sabotaged 2 | . . . . . . . . . . . . . . . . . . 2 . . . . . . . . Parts Stolen . | . . . . . . . . . . . . . . . . . . . . . . . . . . . Parts Stripped . | . . . . . . . . . . . . . . . . . . . . . . . . . . . Power Chain Reactions 14 | . . . . . . . . 2 5 1 . . . 3 1 . . . . 1 . 1 . . . . Missiles Intercepted . | . . . . . . . . . . . . . . . . . . . . . . . . . . . Alert | -11 -10 -10 -9 -9 -9 -8 -8 -8 -8 -7 -7 -7 -7 -6 -6 -5 -5 -5 -5 -5 -5 -5 -4 -4 -4 -3 ------- Run | Scr Mat Min Mat Min Exi Min Mat Sto Gar Fac Gar Fac Gar Fac Gar Fac Was Fac Ext Cet Arc Hub Fac Was Fac Res Peak Influence 1834 | 15 145 131 489 147 . 100 691 626 1834 1024 1071 627 838 562 1082 618 186 785 874 943 503 1616 787 290 600 919 Initial 962 | . 9 56 15 147 . . 39 291 316 962 427 562 96 439 263 567 186 74 361 462 297 . 774 275 203 289 Average 474 | 4 54 48 195 147 . 56 356 376 1173 746 812 195 550 217 756 573 133 451 467 730 167 379 777 281 228 546 Maximum Alert Level 5 | . . . 2 . . . 2 2 5 3 3 2 3 2 3 2 . 3 3 3 2 5 3 1 2 3 Low Security (%) 28 | 100 100 100 59 100 . 100 22 1 . . . 70 2 48 . . 100 8 1 . 64 53 . . 49 . Level 1 19 | . . . 35 . . . 39 65 1 . . 10 21 32 6 . . 30 40 . 20 24 . 100 33 39 Level 2 24 | . . . 4 . . . 38 33 12 47 12 19 50 19 26 100 . 39 40 24 14 3 . . 17 30 Level 3 24 | . . . . . . . . . 30 52 87 . 25 . 67 . . 21 16 75 . 9 100 . . 30 Level 4 3 | . . . . . . . . . 44 . . . . . . . . . . . . 7 . . . . Level 5 . | . . . . . . . . . 11 . . . . . . . . . . . . 2 . . . . High Security . | . . . . . . . . . . . . . . . . . . . . . . . . . . . Max Security . | . . . . . . . . . . . . . . . . . . . . . . . . . . . Squads Dispatched 77 | . 5 . 5 1 . . 5 6 . 8 . 6 . 4 . . . 6 5 . . 13 . . 9 4 Investigation 17 | . 2 . 4 1 . . . 1 . 2 . 1 . 3 . . . . 2 . . . . . . 1 Extermination 15 | . . . . . . . . . . 3 . 3 . 1 . . . 2 . . . 3 . . 2 1 Reinforcement 28 | . 3 . 1 . . . 2 2 . 1 . 2 . . . . . 3 2 . . 5 . . 6 1 Assault 11 | . . . . . . . . 3 . 2 . . . . . . . 1 1 . . 2 . . 1 1 Garrison 6 | . . . . . . . 3 . . . . . . . . . . . . . . 3 . . . . Intercept . | . . . . . . . . . . . . . . . . . . . . . . . . . . . Construction Impeded 8 | . . . . . . . . 1 . 1 . . . . . . . . 1 . . 2 . . 3 . Haulers Reinforced 4 | . . . . . . . . . . . . 1 . . . . . 2 . . . . . . 1 . Stealth | -11 -10 -10 -9 -9 -9 -8 -8 -8 -8 -7 -7 -7 -7 -6 -6 -5 -5 -5 -5 -5 -5 -5 -4 -4 -4 -3 --------- Run | Scr Mat Min Mat Min Exi Min Mat Sto Gar Fac Gar Fac Gar Fac Gar Fac Was Fac Ext Cet Arc Hub Fac Was Fac Res Distress Signals 21 | . . . 2 . . . 1 2 . . . 1 . 2 . . . 1 3 2 2 1 . . 1 3 Communications Jammed . | . . . . . . . . . . . . . . . . . . . . . . . . . . . Distress Signals . | . . . . . . . . . . . . . . . . . . . . . . . . . . . Times Spotted 687 | . 30 8 32 . . 6 60 53 34 24 26 29 29 20 27 4 6 35 49 16 27 61 . 5 50 56 Peak Tracking Total 23 | . 5 3 4 . . 3 5 11 6 4 7 3 6 4 5 3 2 5 7 5 1 16 . 3 13 23 Tactical Retreats 55 | . . 2 1 . . 1 8 7 3 . 2 . 3 1 1 . . 3 2 . . 2 . . 4 15 Traps | -11 -10 -10 -9 -9 -9 -8 -8 -8 -8 -7 -7 -7 -7 -6 -6 -5 -5 -5 -5 -5 -5 -5 -4 -4 -4 -3 ------- Run | Scr Mat Min Mat Min Exi Min Mat Sto Gar Fac Gar Fac Gar Fac Gar Fac Was Fac Ext Cet Arc Hub Fac Was Fac Res Traps Triggered 37 | . . . 1 . . . . 4 8 1 4 . 7 . 7 1 . 1 1 . . . 1 . 1 . Indirectly . | . . . . . . . . . . . . . . . . . . . . . . . . . . . Trap Hack Attempts . | . . . . . . . . . . . . . . . . . . . . . . . . . . . Triggered . | . . . . . . . . . . . . . . . . . . . . . . . . . . . Disarmed . | . . . . . . . . . . . . . . . . . . . . . . . . . . . Reprogrammed 10 | . . . . . . . . . . . . . . . . . . . . . . . . . . 10 Reused 6 | . . . . . . . . . . . . . . . . . . . . . . . . . . 6 Traps Extracted . | . . . . . . . . . . . . . . . . . . . . . . . . . . . Installed . | . . . . . . . . . . . . . . . . . . . . . . . . . . . Triggered 8 | . . . . . . . . . . . . 1 . 1 . . . . . . . . . . . 6 Machines | -11 -10 -10 -9 -9 -9 -8 -8 -8 -8 -7 -7 -7 -7 -6 -6 -5 -5 -5 -5 -5 -5 -5 -4 -4 -4 -3 ---------- Run | Scr Mat Min Mat Min Exi Min Mat Sto Gar Fac Gar Fac Gar Fac Gar Fac Was Fac Ext Cet Arc Hub Fac Was Fac Res Machines Disabled 99 | . . . 1 2 . . 1 3 5 1 4 3 3 3 2 2 . 8 7 3 4 43 . . 4 . Max in Single Turn 8 | . . . 1 1 . . 1 1 1 1 1 1 1 1 1 1 . 6 1 1 2 8 . . 1 . Garrison Access 4 | . . . . . . . . . . 1 . . . 1 . 1 . . . . . . . . . 1 Garrison Relay 13 | . . . . . . . . . 4 . 4 . 3 . 2 . . . . . . . . . . . Network Hub 3 | . . . . . . . . . . . . . . . . . . . . . . 3 . . . . Machines Sabotaged . | . . . . . . . . . . . . . . . . . . . . . . . . . . . Garrisons Compromised . | . . . . . . . . . . . . . . . . . . . . . . . . . . . Overloaded Fab Kills . | . . . . . . . . . . . . . . . . . . . . . . . . . . . Fab Network Shutdowns 1 | . . . . . . . . . . . . . . . . . . 1 . . . . . . . . Hacking | -11 -10 -10 -9 -9 -9 -8 -8 -8 -8 -7 -7 -7 -7 -6 -6 -5 -5 -5 -5 -5 -5 -5 -4 -4 -4 -3 --------- Run | Scr Mat Min Mat Min Exi Min Mat Sto Gar Fac Gar Fac Gar Fac Gar Fac Was Fac Ext Cet Arc Hub Fac Was Fac Res Machines Accessed 93 | . 7 1 6 1 1 . 4 10 . 13 . 7 . 7 . 2 . 4 13 1 . 5 . . 2 9 Terminals 59 | . 4 . 3 . . . 3 9 . 7 . 3 . 1 . . . 2 13 1 . 5 . . 1 7 Fabricators 9 | . . . . . . . . . . 2 . 3 . 1 . . . 1 . . . . . . 1 1 Repair Stations 7 | . 1 . . . . . 1 . . 1 . . . 2 . 1 . 1 . . . . . . . . Recycling Units 4 | . 2 . 2 . . . . . . . . . . . . . . . . . . . . . . . Scanalyzers 3 | . . . 1 . . . . . . 1 . . . 1 . . . . . . . . . . . . Garrison Access 8 | . . . . . . . . 1 . 2 . 1 . 2 . 1 . . . . . . . . . 1 Total Hacks 265 | . 22 1 19 1 1 . 11 30 . 35 . 16 . 20 . 3 . 11 32 1 . 10 . . 13 39 Successful 137 | . 14 1 11 1 1 . 6 13 . 20 . 8 . 13 . 3 . 6 10 . . 4 . . 6 20 Failed 127 | . 8 . 7 . . . 5 17 . 15 . 8 . 7 . . . 5 22 1 . 6 . . 7 19 Catastrophic 28 | . 1 . 1 . . . . 3 . 4 . 3 . . . . . 2 9 . . 2 . . 2 1 Database Lockouts 1 | . . . 1 . . . . . . . . . . . . . . . . . . . . . . . Manual 129 | . 9 . 12 . . . 7 15 . 14 . 8 . 10 . 1 . 7 16 . . 9 . . 7 14 Terminals 178 | . 10 . 10 . . . 8 27 . 19 . 7 . 2 . . . 6 32 1 . 10 . . 9 37 Fabricators 24 | . . . . . . . . . . 4 . 7 . 5 . . . 3 . . . . . . 4 1 Repair Stations 19 | . 7 . . . . . 3 . . 2 . . . 4 . 1 . 2 . . . . . . . . Recycling Units 9 | . 5 . 4 . . . . . . . . . . . . . . . . . . . . . . . Scanalyzers 17 | . . . 5 . . . . . . 6 . . . 6 . . . . . . . . . . . . Garrison Access 15 | . . . . . . . . 3 . 4 . 2 . 3 . 2 . . . . . . . . . 1 Terminal Hacks 51 | . 1 1 3 1 1 . 1 8 . 6 . 2 . . . . . 1 7 . . 1 . . 2 16 Record 1 | . . . . . 1 . . . . . . . . . . . . . . . . . . . . . Part Schematic 1 | . . . . . . . . . . . . . . . . . . . . . . . . . . 1 Robot Schematic 2 | . . . 1 . . . . . . 1 . . . . . . . . . . . . . . . . Robot Analysis 3 | . . . 2 . . . . . . . . . . . . . . . . . . . . . . 1 Prototype ID Bank 1 | . . . . . . . . . . . . . . . . . . . 1 . . . . . . . Open Door 7 | . . 1 . 1 . . . 2 . . . . . . . . . . 3 . . . . . . . Level Access Points 1 | . . . . . . . . . . . . . . . . . . . . . . . . . . 1 Branch Access Points 4 | . . . . . . . . . . 1 . . . . . . . 1 . . . . . . 1 1 Machine Index 1 | . . . . . . . . . . . . . . . . . . . . . . . . . . 1 Terminal Index 3 | . . . . . . . . 1 . 1 . 1 . . . . . . . . . . . . . . Fabricator Index 1 | . . . . . . . . . . . . . . . . . . . . . . . . . . 1 Alert Level 1 | . . . . . . . 1 . . . . . . . . . . . . . . . . . . . Unreport Threat 7 | . . . . . . . . 3 . 2 . . . . . . . . 2 . . . . . . . Locate Traps 2 | . . . . . . . . 1 . . . . . . . . . . . . . . . . . 1 Reprogram Traps 2 | . . . . . . . . . . . . . . . . . . . . . . . . . . 2 Transport Status 1 | . . . . . . . . . . . . . . . . . . . 1 . . . . . . . Recall Investigation 1 | . . . . . . . . . . . . . . . . . . . . . . . . . . 1 Recall Extermination 2 | . . . . . . . . . . . . 1 . . . . . . . . . . . . . 1 Recall Reinforcements 1 | . . . . . . . . . . . . . . . . . . . . . . . . . . 1 Hauler Manifests 1 | . 1 . . . . . . . . . . . . . . . . . . . . . . . . . Registered Prototypes 1 | . . . . . . . . . . . . . . . . . . . . . . . . . . 1 Zone Layout 7 | . . . . . . . . 1 . 1 . . . . . . . . . . . 1 . . 1 3 Fabricator Hacks 10 | . . . . . . . . . . 2 . 2 . 2 . . . 2 . . . . . . 2 . Load Schematic 6 | . . . . . . . . . . 2 . 1 . 1 . . . 1 . . . . . . 1 . Build 4 | . . . . . . . . . . . . 1 . 1 . . . 1 . . . . . . 1 . Repair Station Hacks 12 | . 6 . . . . . 2 . . 2 . . . . . . . 2 . . . . . . . . Scan Component 6 | . 3 . . . . . 1 . . 1 . . . . . . . 1 . . . . . . . . Repair 6 | . 3 . . . . . 1 . . 1 . . . . . . . 1 . . . . . . . . Recycling Unit Hacks 3 | . 2 . 1 . . . . . . . . . . . . . . . . . . . . . . . Retrieve Components 3 | . 2 . 1 . . . . . . . . . . . . . . . . . . . . . . . Scanalyzer 15 | . . . 4 . . . . . . 5 . . . 6 . . . . . . . . . . . . Insert Component 6 | . . . 1 . . . . . . 2 . . . 3 . . . . . . . . . . . . Analyze 9 | . . . 3 . . . . . . 3 . . . 3 . . . . . . . . . . . . Garrison Access Hacks 9 | . . . . . . . . 1 . 2 . 1 . 2 . 2 . . . . . . . . . 1 Unlock Access 4 | . . . . . . . . 1 . 1 . 1 . 1 . . . . . . . . . . . . Seal Access 4 | . . . . . . . . . . 1 . . . 1 . 1 . . . . . . . . . 1 Coupler Status 1 | . . . . . . . . . . . . . . . . 1 . . . . . . . . . . Unauthorized Hacks 37 | . 5 . 3 . . . 3 4 . 3 . 3 . 3 . 1 . 1 3 . . 3 . . 2 3 Terminals 23 | . 3 . 1 . . . 3 3 . 2 . 1 . . . . . . 3 . . 3 . . 2 2 Track 8 | . 2 . . . . . 1 1 . . . . . . . . . . 1 . . 1 . . 1 1 Assimilate 1 | . . . . . . . 1 . . . . . . . . . . . . . . . . . . . Botnet 11 | . 1 . 1 . . . 1 2 . 2 . 1 . . . . . . 2 . . . . . 1 . Detonate 2 | . . . . . . . . . . . . . . . . . . . . . . 2 . . . . Disrupt 1 | . . . . . . . . . . . . . . . . . . . . . . . . . . 1 Fabricators 4 | . . . . . . . . . . . . 1 . 1 . . . 1 . . . . . . . 1 Report 1 | . . . . . . . . . . . . 1 . . . . . . . . . . . . . . Haulers 2 | . . . . . . . . . . . . . . 1 . . . 1 . . . . . . . . Overload 1 | . . . . . . . . . . . . . . . . . . . . . . . . . . 1 Repair Stations 2 | . . . . . . . . . . . . . . 1 . 1 . . . . . . . . . . Mechanics 2 | . . . . . . . . . . . . . . 1 . 1 . . . . . . . . . . Recycling Units 4 | . 2 . 2 . . . . . . . . . . . . . . . . . . . . . . . Tunnel 4 | . 2 . 2 . . . . . . . . . . . . . . . . . . . . . . . Scanalyzers . | . . . . . . . . . . . . . . . . . . . . . . . . . . . Garrison Access 4 | . . . . . . . . 1 . 1 . 1 . 1 . . . . . . . . . . . . Restock 1 | . . . . . . . . . . 1 . . . . . . . . . . . . . . . . Eject 3 | . . . . . . . . 1 . . . 1 . 1 . . . . . . . . . . . . Data Cores Recovered 3 | . . . . . . . . . . 1 . 1 . . . . . . . . . 1 . . . . Used 2 | . . . . . . . . . . 1 . . . . . . . . . . . 1 . . . . Hacking Detections 73 | . 5 . 5 . . . 4 8 . 10 . 7 . 4 . 1 . 3 12 1 . 5 . . 1 7 Full Trace Events 6 | . 1 . 1 . . . . . . 1 . . . 1 . . . . 2 . . . . . . . Feedback Events 1 | . . . . . . . . . . . . . . . . . . . 1 . . . . . . . Corruption 1 | . . . . . . . . . . . . . . . . . . . 1 . . . . . . . Feedback Blocked . | . . . . . . . . . . . . . . . . . . . . . . . . . . . Robot Schematics Acquired 2 | . . . 1 . . . . . . 1 . . . . . . . . . . . . . . . . Robots Built 6 | . . . . . . . . . . . . 2 . 2 . . . 2 . . . . . . . . Matter 756 | . . . . . . . . . . . . 252 . 252 . . . 252 . . . . . . . . Time 335 | . . . . . . . . . . . . 67 . 134 . . . 134 . . . . . . . . Total Robot Build Rating 24 | . . . . . . . . . . . . 8 . 8 . . . 8 . . . . . . . . Part Schematics Acquired 7 | . . . 1 . . . . . . 2 . . . 3 . . . . . . . . . . . 1 Parts Built 1 | . . . . . . . . . . . . . . . . . . . . . . . . . 1 . Matter 168 | . . . . . . . . . . . . . . . . . . . . . . . . . 168 . Time 42 | . . . . . . . . . . . . . . . . . . . . . . . . . 42 . Total Part Build Rating 4 | . . . . . . . . . . . . . . . . . . . . . . . . . 4 . Parts Repaired 6 | . 3 . . . . . 1 . . 1 . . . . . . . 1 . . . . . . . . Time 169 | . 78 . . . . . 13 . . 16 . . . . . . . 62 . . . . . . . . Parts Recycled . | . . . . . . . . . . . . . . . . . . . . . . . . . . . Recycled Matter . | . . . . . . . . . . . . . . . . . . . . . . . . . . . Retrieved Matter . | . . . . . . . . . . . . . . . . . . . . . . . . . . . Retrieved Components 19 | . 19 . . . . . . . . . . . . . . . . . . . . . . . . . Parts Scanalyzed 6 | . . . 1 . . . . . . 2 . . . 3 . . . . . . . . . . . . Part Schematics Acquired 6 | . . . 1 . . . . . . 2 . . . 3 . . . . . . . . . . . . Parts Damaged 1 | . . . . . . . . . . 1 . . . . . . . . . . . . . . . . Bothacking | -11 -10 -10 -9 -9 -9 -8 -8 -8 -8 -7 -7 -7 -7 -6 -6 -5 -5 -5 -5 -5 -5 -5 -4 -4 -4 -3 ------------ Run | Scr Mat Min Mat Min Exi Min Mat Sto Gar Fac Gar Fac Gar Fac Gar Fac Was Fac Ext Cet Arc Hub Fac Was Fac Res Used RIF Installer 4 | . . . . . . . . . 1 . 1 . 1 . 1 . . . . . . . . . . . Zone Cloak 1 | . . . . . . . . . . . . . 1 . . . . . . . . . . . . . Robot Detection 1 | . . . . . . . . . . . 1 . . . . . . . . . . . . . . . Autooverride 1 | . . . . . . . . . . . . . . . 1 . . . . . . . . . . . Robots Hacked 71 | . . . . . . . . . . 5 9 9 9 9 9 2 7 5 . . . 2 1 2 2 . Non-combat 18 | . . . . . . . . . . . . 5 . 6 . 2 . 1 . . . 2 1 . 1 . Combat 53 | . . . . . . . . . . 5 9 4 9 3 9 . 7 4 . . . . . 2 1 . Autooverrided 2 | . . . . . . . . . . . . . . . 2 . . . . . . . . . . . Robot Hacks Applied 89 | . . . . . . . . . . 6 10 13 9 15 8 2 9 6 . . . 5 1 2 3 . parse_system 5 | . . . . . . . . . . . 1 . . 1 . . 2 . . . . 1 . . . . find_chute 3 | . . . . . . . . . . . . . . 1 . 1 . . . . . . 1 . . . ignore_repairs 1 | . . . . . . . . . . . . . . . . . . 1 . . . . . . . . find_fabricator 1 | . . . . . . . . . . . . . . 1 . . . . . . . . . . . . drop_inventory 5 | . . . . . . . . . . . . 1 . 3 . . . . . . . . . . 1 . purge_threat 9 | . . . . . . . . . . . . 3 . 3 . . . . . . . 3 . . . . block_reporting 1 | . . . . . . . . . . . . 1 . . . . . . . . . . . . . . summon_haulers 2 | . . . . . . . . . . . . 1 . 1 . . . . . . . . . . . . clear_repairs 1 | . . . . . . . . . . . . . . . . . . . . . . 1 . . . . map_route 2 | . . . . . . . . . . . . 1 . . . 1 . . . . . . . . . . ignore_targets 9 | . . . . . . . . . . . . . . . . . 7 . . . . . . 2 . . find_garrison 4 | . . . . . . . . . . 1 . . . 1 . . . 1 . . . . . . 1 . show_paths 1 | . . . . . . . . . . . . . . . 1 . . . . . . . . . . . scatter_targeting 1 | . . . . . . . . . . . 1 . . . . . . . . . . . . . . . amplify_resonance 3 | . . . . . . . . . . . 1 . 1 . 1 . . . . . . . . . . . reboot_system 4 | . . . . . . . . . . 1 . . 1 . 1 . . 1 . . . . . . . . overwrite_iff 5 | . . . . . . . . . . 1 . 2 1 . 1 . . . . . . . . . . . formatsys_low 4 | . . . . . . . . . . . . 2 . 2 . . . . . . . . . . . . formatsys_high 28 | . . . . . . . . . . 3 7 2 6 2 4 . . 3 . . . . . . 1 . Relay Couplers Released 68 | . . . . . . . . 3 15 6 17 3 12 3 9 . . . . . . . . . . . Ejected 7 | . . . . . . . . 3 . . . 3 . 1 . . . . . . . . . . . . Machine Destruction 58 | . . . . . . . . . 15 3 17 . 12 2 9 . . . . . . . . . . . Programmers 3 | . . . . . . . . . . 3 . . . . . . . . . . . . . . . . Attached 30 | . . . . . . . . . . 3 5 5 2 6 2 1 . 3 . . . 1 . 1 1 . Robots Rewired 42 | . . . . . . . . . 9 . . . 6 . 6 . . . 21 . . . . . . . Allies Hacked 4 | . . . . . . . . . . 1 . 1 . 1 . 1 . . . . . . . . . . Hacks Repelled 1 | . . . . . . . . . . . . . . . . . . 1 . . . . . . . . Allies | -11 -10 -10 -9 -9 -9 -8 -8 -8 -8 -7 -7 -7 -7 -6 -6 -5 -5 -5 -5 -5 -5 -5 -4 -4 -4 -3 -------- Run | Scr Mat Min Mat Min Exi Min Mat Sto Gar Fac Gar Fac Gar Fac Gar Fac Was Fac Ext Cet Arc Hub Fac Was Fac Res Total Allies 97 | . . . . . . . 1 2 9 4 7 8 13 7 13 1 . 5 26 . . . . . 1 . Largest Group 19 | . . . . . . . 1 2 6 4 3 4 14 18 19 12 6 5 12 7 2 . . . 1 . Highest-Rated Group 603 | . . . . . . . 26 62 129 119 80 124 368 502 603 407 175 187 499 343 180 . . . 49 . Highest-Rated Ally 156 | . . . . . . . 26 31 38 38 32 38 38 41 47 47 47 41 156 156 148 . . . 49 . Total Orders 63 | . . . . . . . . . 2 3 3 4 12 15 14 2 . 5 2 1 . . . . . . STAY 37 | . . . . . . . . . 1 2 2 3 8 7 8 1 . 3 1 1 . . . . . . FOLLOW 22 | . . . . . . . . . 1 1 1 1 4 6 4 1 . 2 1 . . . . . . . AID 4 | . . . . . . . . . . . . . . 2 2 . . . . . . . . . . . Ally Attacks 727 | . . . . . . . . 21 40 33 28 28 34 43 101 19 52 65 187 60 3 . . . 13 . Total Damage 18531 | . . . . . . . . 397 668 1038 400 918 844 1022 3113 581 2223 1706 4008 1299 107 . . . 207 . Kills 122 | . . . . . . . . 4 7 6 5 7 10 7 18 3 3 10 31 9 . . . . 2 . Allies Corrupted 2 | . . . . . . . . . . 1 . . . . . . . . . . . . . . 1 . Allies Melted . | . . . . . . . . . . . . . . . . . . . . . . . . . . . Intel | -11 -10 -10 -9 -9 -9 -8 -8 -8 -8 -7 -7 -7 -7 -6 -6 -5 -5 -5 -5 -5 -5 -5 -4 -4 -4 -3 ------- Run | Scr Mat Min Mat Min Exi Min Mat Sto Gar Fac Gar Fac Gar Fac Gar Fac Was Fac Ext Cet Arc Hub Fac Was Fac Res Robot Analysis Total 3 | . . . 2 . . . . . . . . . . . . . . . . . . . . . . 1 Derelict Logs Recovered . | . . . . . . . . . . . . . . . . . . . . . . . . . . . Drone Launches 3 | . . . . . . . . . . . . . . . . . . . . . . . . . 3 . Drone Recoveries 1 | . . . . . . . . . . . . . . . . . . . . . . . . . 1 . Exploration | -11 -10 -10 -9 -9 -9 -8 -8 -8 -8 -7 -7 -7 -7 -6 -6 -5 -5 -5 -5 -5 -5 -5 -4 -4 -4 -3 ------------- Run | Scr Mat Min Mat Min Exi Min Mat Sto Gar Fac Gar Fac Gar Fac Gar Fac Was Fac Ext Cet Arc Hub Fac Was Fac Res Turns Passed 38581 | 91 1795 939 1229 310 860 331 1540 1691 2310 1657 3356 1921 3123 1561 3064 537 358 2427 2067 472 2274 1552 357 386 1837 536 Spaces Moved 17091 | 46 790 473 534 148 430 132 519 775 1056 986 1279 818 1425 983 1457 259 113 899 849 222 249 606 178 189 774 902 Core 729 | 8 . . . . . . . . . . . . . . . . . . . . 68 . . . 80 573 Treads 11011 | 38 790 473 379 148 430 132 519 418 732 . 516 818 1077 . 351 259 113 899 849 222 181 606 178 189 694 . Legs 892 | . . . . . . . . . . . . . . . 892 . . . . . . . . . . . Wheels 4130 | . . . 155 . . . . 357 324 986 763 . 348 983 214 . . . . . . . . . . . Hover 42 | . . . . . . . . . . . . . . . . . . . . . . . . . . 42 Flight 287 | . . . . . . . . . . . . . . . . . . . . . . . . . . 287 Fastest Speed 50 | 50 160 180 130 200 200 200 200 130 130 130 130 200 140 120 140 180 180 180 180 180 180 180 180 160 50 50 Average Speed 178 | 143 170 180 172 200 200 200 204 168 179 131 167 200 198 127 187 184 190 180 180 180 854 181 180 160 154 52 Slowest Speed 2650 | 160 180 180 200 200 200 200 280 200 260 140 220 260 280 140 360 200 200 200 200 180 2650 200 180 160 180 100 Overloaded Moves . | . . . . . . . . . . . . . . . . . . . . . . . . . . . Propulsion Burnouts . | . . . . . . . . . . . . . . . . . . . . . . . . . . . Robots Hopped 8 | . . . . . . . . . . . . . . . . . . . . . . . . . . 8 Cave-ins Triggered . | . . . . . . . . . . . . . . . . . . . . . . . . . . . Exploration Rate (%) 53 | 4 93 71 41 45 90 33 54 93 86 23 87 19 60 20 84 7 88 18 86 68 83 52 8 90 15 31 Regions Visited 26 Branch Regions 9 Pre-discovered Areas 4 | . 2 . 2 . . . . . . . . . . . . . . . . . . . . . . . Known Exits Taken 7 | . . . . . . . 1 1 . 1 . 1 . 1 . . . 1 . . . . . . 1 . Unknown Exits Taken 11 | 1 1 1 1 1 1 1 . . . . . . . . . . . . 1 1 1 1 . . . . Scrap Searched 1 | . . 1 . . . . . . . . . . . . . . . . . . . . . . . . Spaces Dug 69 | . 1 2 . . . . . . 3 14 22 . . 1 . . . 4 1 . 1 5 4 . 11 . Terrain Destroyed 1546 | . 1 4 12 . . . . 23 76 36 102 16 3 114 9 3 1 108 9 3 26 956 4 . 40 . Melee 33 | . . . . . . . . . . 14 3 . . 1 . . . . . . . . 4 . 11 . Projectile 208 | . 1 4 . . . . . . . 2 . . 1 . 1 3 1 50 9 2 26 79 . . 29 . AOE 1305 | . . . 12 . . . . 23 76 20 99 16 2 113 8 . . 58 . 1 . 877 . . . . Terrain Rammed . | . . . . . . . . . . . . . . . . . . . . . . . . . . . Walls Destroyed . | . . . . . . . . . . . . . . . . . . . . . . . . . . . Machines Disabled . | . . . . . . . . . . . . . . . . . . . . . . . . . . . Actions | -11 -10 -10 -9 -9 -9 -8 -8 -8 -8 -7 -7 -7 -7 -6 -6 -5 -5 -5 -5 -5 -5 -5 -4 -4 -4 -3 --------- Run | Scr Mat Min Mat Min Exi Min Mat Sto Gar Fac Gar Fac Gar Fac Gar Fac Was Fac Ext Cet Arc Hub Fac Was Fac Res Total 22751 | 60 1037 507 692 155 431 158 744 975 1344 1235 2431 998 1647 1220 1699 305 222 1508 1300 273 319 849 208 254 1223 957 Wait 2506 | . 98 3 15 . . 1 39 23 29 110 999 59 42 126 61 27 49 380 22 2 16 100 3 45 215 42 Move 17054 | 45 789 472 533 147 429 131 518 775 1054 985 1278 817 1424 982 1456 259 112 898 848 221 248 605 178 188 773 889 Hop 5 | . . . . . . . . . . . . . . . . . . . . . . . . . . 5 Pick Up 251 | 5 19 2 23 2 1 1 13 11 11 15 23 10 19 11 13 1 5 20 9 5 2 5 3 2 18 2 Fast Attach 142 | 6 7 1 5 . . 2 4 6 5 7 4 6 7 6 12 1 7 17 5 4 6 5 . . 10 9 Attach 116 | . 3 . 8 . . 3 12 1 3 8 10 7 5 5 4 2 . 12 1 1 2 3 9 . 15 2 Detach 14 | . 1 . . . . . . . 1 . 2 . 2 . . . 1 1 . . . . 1 . 4 1 Swap 277 | . 6 4 8 . . . 15 27 11 18 15 16 19 25 12 5 4 26 13 11 3 8 3 3 25 . Drop 299 | . 8 . 19 2 1 . 15 25 17 15 20 8 14 11 18 2 17 36 21 11 8 8 4 1 15 3 Fire 1344 | 4 101 24 80 4 . 20 124 105 60 30 45 75 55 45 61 8 27 118 58 18 34 113 1 7 127 . Melee 130 | . . . . . . . . . 24 37 15 . . 9 12 . . . . . . . 5 8 20 . Ram 5 | . . . . . . . . 1 . . . . . . . . . . . . . . . . . 4 Kick . | . . . . . . . . . . . . . . . . . . . . . . . . . . . Crush 19 | . 5 1 1 . . . 4 1 . . . . 3 . . . . . . . . 2 1 . 1 . Escape Stasis 122 | . . . . . . . . . 51 8 20 . 8 . 33 . . . 2 . . . . . . . Rewire 467 | . . . . . . . . . 78 2 . . 49 . 17 . . . 321 . . . . . . . Trap . | . . . . . . . . . . . . . . . . . . . . . . . . . . . Miscellaneous . | . . . . . . . . . . . . . . . . . . . . . . . . . . . Route ------- -11/Scrapyard -10/Materials (discovered 5 exits: *Mat x3 / *Min x2) -10/Mines -9/Materials (discovered 2 exits: *Min x2) -9/Mines -9/Exiles -8/Mines -8/Materials (discovered 2 exits: *Fac / *Sto) -8/Storage (discovered 2 exits: *Fac / Gar) -8/Garrison (discovered 3 exits: *Fac x3) -7/Factory (discovered 3 exits: *Low x2 / Gar) -7/Garrison (discovered 3 exits: *Fac x3) -7/Factory (discovered 2 exits: *Fac / Gar) -7/Garrison (discovered 2 exits: *Fac x2) -6/Factory -6/Garrison (discovered 3 exits: *Fac x3) -5/Factory -5/Waste -5/Factory (discovered 5 exits: [*Fac] / *Upp x2 / *Ext x2) -5/Extension (discovered 2 exits: [*Fac] / *Cet) -5/Cetus (discovered 2 exits: [*Fac] / [*Arc]) -5/Archives (discovered 3 exits: [*Fac] / *Hub x2) -5/Hub_04(d) (discovered 3 exits: [*Fac x3]) -4/Factory -4/Waste -4/Factory (discovered 4 exits: *Res x2 / *Upp x2) -3/Research (discovered 6 exits: *Res x3 / Arm / Tes x2) History --------- Turn | Location | Event 7 | -11/Scrapyard | Discovered new exit (range 15) 92 | -11/Scrapyard | Entered Materials 313 | -10/Materials | Build established: Mutant 556 | -10/Materials | Discovered new exit (range 8) 764 | -10/Materials | Discovered new exit (range 15) 851 | -10/Materials | Discovered new exit (range 16) 1163 | -10/Materials | Discovered new exit (range 11) 1244 | -10/Materials | Discovered new exit (range 15) 1564 | -10/Materials | Repaired Lgt. Treads 1592 | -10/Materials | Repaired Lgt. Treads 1619 | -10/Materials | Repaired Assault Rifle 1678 | -10/Materials | Build established: Hauler-Mutant 1887 | -10/Materials | Entered Mines 2117 | -10/Mines | Found a damaged Exp. Sensor Array with a note attached 2120 | -10/Mines | Found Prototype Device 2308 | -10/Mines | Discovered new exit (range 14) 2347 | -10/Mines | Found the Drone Emporium 2355 | -10/Mines | Found Prototype Device 2465 | -10/Mines | Excavation squad dispatched 2465 | -10/Mines | A large section of the Mines collapsed 2826 | -10/Mines | Entered Materials 2826 | -9/Materials | Evolved 2 slots: Utility x1, Weapon x1 3024 | -9/Materials | Discovered new exit (range 7) 3120 | -9/Materials | Build established: Hauler-Tank 3545 | -9/Materials | Build established: Hauler-Gunner 3706 | -9/Materials | Discovered new exit (range 15) 3818 | -9/Materials | Identified Exp. Sensor Array 3966 | -9/Materials | Central database locked down 4055 | -9/Materials | Entered Mines 4060 | -9/Mines | Met a Derelict shopkeep closing up shop 4094 | -9/Mines | Received a Rocket Launcher from a helpful Derelict 4355 | -9/Mines | Deemed a non-threat by the Exiles lab entrance 4355 | -9/Mines | Discovered new exit (range 5) 4365 | -9/Mines | Entered Exiles 4365 | -9/Exiles | Found Exiles lab abandoned 5207 | -9/Exiles | Discovered new exit (range 10) 5225 | -9/Exiles | Entered Mines 5534 | -8/Mines | Discovered new exit (range 11) 5542 | -8/Mines | Lost 3 parts (2n1w) 5556 | -8/Mines | Entered Materials 5556 | -8/Materials | Evolved 2 slots: Utility x2 5556 | -8/Materials | Identified Thief Drone Bay 5698 | -8/Materials | Repaired Lgt. Armor Plating 5865 | -8/Materials | Build established: Hauler-Tank 6257 | -8/Materials | Lost 3 parts (1u2w) 6371 | -8/Materials | Garrison activated, responded to threat 6553 | -8/Materials | Lost 3 parts (2n1u) 6816 | -8/Materials | Build established: Hauler-Gunner 6886 | -8/Materials | Discovered new exit (range 13) 6982 | -8/Materials | Discovered new exit (range 16) 7079 | -8/Materials | Identified exit to Storage 7096 | -8/Materials | Entered Storage 7403 | -8/Storage | Core integrity fell below 50% 7496 | -8/Storage | First assault squad dispatched 7544 | -8/Storage | Build established: Hauler-Tank 7606 | -8/Storage | Destroyed 8 combat bots 8174 | -8/Storage | Met a pair of Derelict thieves 8427 | -8/Storage | Discovered new exit (range 12) 8787 | -8/Storage | Identified exit to Garrison 8787 | -8/Storage | Entered Garrison 8807 | -8/Garrison | Triggered checkpoint 8856 | -8/Garrison | Garrison Relay disabled 8909 | -8/Garrison | Triggered checkpoint 9026 | -8/Garrison | Discovered new exit (range 13) 9076 | -8/Garrison | Triggered checkpoint 9091 | -8/Garrison | Build established: Hauler-Mutant 9107 | -8/Garrison | Triggered checkpoint 9168 | -8/Garrison | Destroyed 7 combat bots 9323 | -8/Garrison | Discovered new exit (range 15) 9570 | -8/Garrison | Build established: Hauler-Gunner 9593 | -8/Garrison | Triggered checkpoint 9774 | -8/Garrison | Triggered checkpoint 9781 | -8/Garrison | Triggered checkpoint 9879 | -8/Garrison | Triggered checkpoint 9910 | -8/Garrison | Discovered new exit (range 9) 10430 | -8/Garrison | Garrison Relay disabled 10628 | -8/Garrison | Installed Relay Interface Framework 10830 | -8/Garrison | Triggered checkpoint 10895 | -8/Garrison | Garrison Relay disabled 10984 | -8/Garrison | Triggered checkpoint 11015 | -8/Garrison | Garrison Relay disabled 11097 | -8/Garrison | Entered Factory 11097 | -7/Factory | Accompanied by 4 allies 11097 | -7/Factory | Evolved 2 slots: Utility x2 11102 | -7/Factory | Discovered new exit (range 15) 11388 | -7/Factory | Build established: Bothacker-Skirmisher 11860 | -7/Factory | Repaired Arm. Wheel 11897 | -7/Factory | First assault squad dispatched 12174 | -7/Factory | Lost 4 parts (1n1u2w) 12438 | -7/Factory | Identified exit to Lower Caves 12534 | -7/Factory | Build established: Hauler-Mutant 12708 | -7/Factory | Identified exit to Garrison 12754 | -7/Factory | Entered Garrison 12840 | -7/Garrison | Triggered checkpoint 12898 | -7/Garrison | Garrison Relay disabled 13019 | -7/Garrison | Build established: Bothacker-Mutant 13151 | -7/Garrison | Triggered checkpoint 14405 | -7/Garrison | Discovered new exit (range 13) 14420 | -7/Garrison | Identified exit to Factory 14629 | -7/Garrison | Discovered exit to Factory (range 8) 14650 | -7/Garrison | Expanded RIF knowledge: Robot Detection 14708 | -7/Garrison | Triggered checkpoint 14739 | -7/Garrison | Garrison Relay disabled 14864 | -7/Garrison | Triggered checkpoint 15001 | -7/Garrison | Triggered checkpoint 15094 | -7/Garrison | Triggered checkpoint 15184 | -7/Garrison | Garrison Relay disabled 15707 | -7/Garrison | Discovered exit to Factory (range 8) 15752 | -7/Garrison | Triggered checkpoint 15781 | -7/Garrison | Garrison Relay disabled 16093 | -7/Garrison | Build established: Bothacker-Gunner 16110 | -7/Garrison | Entered Factory 16110 | -7/Factory | Accompanied by 3 allies 16768 | -7/Factory | Lost 4 parts (1n1u2w) 17593 | -7/Factory | Build established: Bothacker-Mutant 17600 | -7/Factory | Fabricated P-60 Hacker (x2) 17869 | -7/Factory | Discovered new exit (range 4) 17970 | -7/Factory | Identified exit to Garrison 18031 | -7/Factory | Entered Garrison 18031 | -7/Garrison | Accompanied by 4 allies 18076 | -7/Garrison | Triggered checkpoint 18122 | -7/Garrison | Garrison Relay disabled 18414 | -7/Garrison | Triggered checkpoint 18558 | -7/Garrison | Triggered checkpoint 18602 | -7/Garrison | Triggered checkpoint 18887 | -7/Garrison | Garrison Relay disabled 19181 | -7/Garrison | Discovered new exit (range 14) 19234 | -7/Garrison | Identified exit to Factory 19248 | -7/Garrison | Expanded RIF knowledge: Zone Cloak 19374 | -7/Garrison | Triggered checkpoint 19704 | -7/Garrison | Triggered checkpoint 19736 | -7/Garrison | Triggered checkpoint 19816 | -7/Garrison | Build established: Commander-Tank 20148 | -7/Garrison | Build established: Bothacker-Tank 20352 | -7/Garrison | Triggered checkpoint 20398 | -7/Garrison | Garrison Relay disabled 20439 | -7/Garrison | Discovered exit to Factory (range 14) 20711 | -7/Garrison | Build established: Bothacker-Mutant 21154 | -7/Garrison | Entered Factory 21154 | -6/Factory | Accompanied by 14 allies 21154 | -6/Factory | Evolved 2 slots: Propulsion x1, Utility x1 21643 | -6/Factory | Fabricated P-60 Hacker? 21720 | -6/Factory | Build established: Commander-Mutant 22700 | -6/Factory | Identified exit to Garrison 22715 | -6/Factory | Entered Garrison 22715 | -6/Garrison | Accompanied by 16 allies 22722 | -6/Garrison | Expanded RIF knowledge: Autooverride 23348 | -6/Garrison | Build established: Commander-Tank 23580 | -6/Garrison | Triggered checkpoint 23618 | -6/Garrison | Garrison Relay disabled 23692 | -6/Garrison | Triggered checkpoint 23693 | -6/Garrison | Spotted B-75 Beast 23702 | -6/Garrison | Triggered checkpoint 23705 | -6/Garrison | Allies destroyed B-75 Beast 23724 | -6/Garrison | Triggered checkpoint 23732 | -6/Garrison | Triggered checkpoint 23867 | -6/Garrison | Discovered new exit (range 10) 23991 | -6/Garrison | Build established: Botlord-Tank 24024 | -6/Garrison | Discovered new exit (range 14) 25276 | -6/Garrison | Triggered checkpoint 25466 | -6/Garrison | Discovered new exit (range 15) 25576 | -6/Garrison | Garrison Relay disabled 25769 | -6/Garrison | Identified exit to Factory 25779 | -6/Garrison | Entered Factory 25779 | -5/Factory | Accompanied by 12 allies 25779 | -5/Factory | Evolved 2 slots: Power x1, Utility x1 25927 | -5/Factory | Build established: Botlord-Mutant 26218 | -5/Factory | Hacker 4b assimilated hostile G-50 Soldier 26316 | -5/Factory | Sucked down chute 26316 | -5/Factory | Entered Waste 26331 | -5/Waste | EMP discharged 26333 | -5/Waste | Spotted C-40 Crusher 26388 | -5/Waste | Spotted C-40 Crusher 26390 | -5/Waste | Spotted C-40 Crusher 26397 | -5/Waste | Allies destroyed C-40 Crusher 26421 | -5/Waste | Found Damper Plating 26431 | -5/Waste | EMP discharged 26432 | -5/Waste | Spotted C-40 Crusher 26436 | -5/Waste | Spotted C-40 Crusher 26454 | -5/Waste | Destroyed C-40 Crusher 26472 | -5/Waste | Spotted C-40 Crusher 26481 | -5/Waste | Destroyed C-40 Crusher 26488 | -5/Waste | Found Damper Plating 26500 | -5/Waste | Found Damper Plating 26507 | -5/Waste | Allies destroyed C-40 Crusher 26514 | -5/Waste | Destroyed C-40 Crusher 26515 | -5/Waste | 11 allies followed down the chute 26526 | -5/Waste | Destroyed C-40 Crusher 26531 | -5/Waste | EMP discharged 26616 | -5/Waste | Discovered new exit (range 12) 26631 | -5/Waste | EMP discharged 26674 | -5/Waste | Entered Factory 26674 | -5/Factory | Accompanied by 5 allies 26722 | -5/Factory | Identified exit to Upper Caves 26722 | -5/Factory | Identified exit to Extension 26881 | -5/Factory | Local fabrication network quarantined 26983 | -5/Factory | Fabricated P-60 Hacker? 27456 | -5/Factory | Repaired Antimatter Reactor 27584 | -5/Factory | Discovered new exit (range 10) 27770 | -5/Factory | Build established: Botlord-Gunner 27881 | -5/Factory | System corruption reached 10% 28474 | -5/Factory | First assault squad dispatched 28995 | -5/Factory | Build established: Bothacker-Gunner 29101 | -5/Factory | Entered Extension 29101 | -5/Extension | Accompanied by 1 ally 29127 | -5/Extension | Disrupted transfer network 29490 | -5/Extension | Rescued a captive Derelict 29518 | -5/Extension | Rescued a captive Derelict 30093 | -5/Extension | Spotted B-75 Beast 30113 | -5/Extension | Allies destroyed B-75 Beast 30114 | -5/Extension | Spotted B-75 Beast 30117 | -5/Extension | Allies destroyed B-75 Beast 30277 | -5/Extension | Rescued A7 30642 | -5/Extension | Rescued a captive Derelict 30643 | -5/Extension | Rescued a captive Derelict 30901 | -5/Extension | First assault squad dispatched 31138 | -5/Extension | Discovered new exit (range 10) 31140 | -5/Extension | Discovered new exit (range 6) 31168 | -5/Extension | Entered Cetus 31168 | -5/Cetus | Accompanied by 7 allies (A7) 31173 | -5/Cetus | Acquired a Cetus Manufacturing Module code from A7 31197 | -5/Cetus | Spotted Cetus Guard 31197 | -5/Cetus | Spotted Cetus Guard 31201 | -5/Cetus | Destroyed Cetus Guard 31201 | -5/Cetus | Spotted Cetus Guard 31201 | -5/Cetus | Spotted Cetus Guard 31205 | -5/Cetus | Destroyed Cetus Guard 31208 | -5/Cetus | Destroyed Cetus Guard 31210 | -5/Cetus | Allies destroyed Cetus Guard 31277 | -5/Cetus | Cetus Manufacturing Module disabled 31428 | -5/Cetus | Escorted A7 to Cetus Mainframe 31450 | -5/Cetus | Discovered new exit (range 16) 31487 | -5/Cetus | Spotted Cetus Guard 31487 | -5/Cetus | Spotted Cetus Guard 31495 | -5/Cetus | Allies destroyed Cetus Guard 31495 | -5/Cetus | Spotted Cetus Guard 31496 | -5/Cetus | Spotted Cetus Guard 31498 | -5/Cetus | Allies destroyed Cetus Guard 31508 | -5/Cetus | Destroyed Cetus Guard 31513 | -5/Cetus | Destroyed Cetus Guard 31523 | -5/Cetus | Discovered new exit (range 16) 31533 | -5/Cetus | Met Revision 17 31640 | -5/Cetus | Entered Archives 31640 | -5/Archives | Accompanied by 2 allies (A7) 31645 | -5/Archives | Received a hacking code to weaken MAIN.C 31857 | -5/Archives | Discovered new exit (range 14) 31891 | -5/Archives | Discovered new exit (range 15) 31927 | -5/Archives | Discovered new exit (range 15) 33914 | -5/Archives | Entered Hub_04(d) 34055 | -5/Hub_04(d) | Discovered new exit (range 8) 34147 | -5/Hub_04(d) | Core integrity fell below 50% 34323 | -5/Hub_04(d) | Garrison activated, responded to threat 34486 | -5/Hub_04(d) | Discovered new exit (range 13) 34760 | -5/Hub_04(d) | Discovered new exit (range 6) 34860 | -5/Hub_04(d) | Build established: Scavenger-Gunner 35165 | -5/Hub_04(d) | Network Hub disabled 35169 | -5/Hub_04(d) | Network Hub disabled 35175 | -5/Hub_04(d) | Build established: Bothacker-Gunner 35263 | -5/Hub_04(d) | Spotted Lightning 35263 | -5/Hub_04(d) | Spotted Lightning 35267 | -5/Hub_04(d) | Destroyed Lightning 35267 | -5/Hub_04(d) | Spotted Lightning 35287 | -5/Hub_04(d) | Destroyed Lightning 35293 | -5/Hub_04(d) | Destroyed Lightning 35309 | -5/Hub_04(d) | Network Hub disabled 35319 | -5/Hub_04(d) | Spotted Lightning 35321 | -5/Hub_04(d) | Spotted Lightning 35321 | -5/Hub_04(d) | Spotted Lightning 35334 | -5/Hub_04(d) | Destroyed Lightning 35344 | -5/Hub_04(d) | Destroyed Lightning 35347 | -5/Hub_04(d) | Destroyed Lightning 35351 | -5/Hub_04(d) | Spotted Lightning 35351 | -5/Hub_04(d) | Spotted Lightning 35355 | -5/Hub_04(d) | Spotted Lightning 35382 | -5/Hub_04(d) | Destroyed Lightning 35414 | -5/Hub_04(d) | First assault squad dispatched 35439 | -5/Hub_04(d) | Found Prototype Energy Cannon 35442 | -5/Hub_04(d) | Found Prototype Device 35464 | -5/Hub_04(d) | Found Prototype Energy Cannon 35464 | -5/Hub_04(d) | Identified EMDS (x2) 35466 | -5/Hub_04(d) | Entered Factory 35466 | -4/Factory | Evolved 2 slots: Propulsion x1, Utility x1 35487 | -4/Factory | Lost 4 parts (1n2u1w) 35670 | -4/Factory | Build established: Bothacker-Mutant 35692 | -4/Factory | Identified EM Dispersion Field 35823 | -4/Factory | Sucked down chute 35823 | -4/Factory | Entered Waste 35838 | -4/Waste | EMP discharged 35843 | -4/Waste | Spotted C-40 Crusher 35864 | -4/Waste | Spotted C-40 Crusher 35938 | -4/Waste | EMP discharged 35961 | -4/Waste | Spotted C-40 Crusher 35972 | -4/Waste | Spotted C-40 Crusher 36008 | -4/Waste | Spotted C-40 Crusher 36038 | -4/Waste | EMP discharged 36041 | -4/Waste | Spotted C-40 Crusher 36138 | -4/Waste | EMP discharged 36194 | -4/Waste | Discovered new exit (range 10) 36207 | -4/Waste | Identified exit to Factory 36209 | -4/Waste | Entered Factory 36693 | -4/Factory | Discovered new exit (range 12) 36695 | -4/Factory | Identified exit to Upper Caves 36800 | -4/Factory | Identified exit to Research 37220 | -4/Factory | Discovered exit to Research (range 12) 37752 | -4/Factory | Fabricated Med. Reactive Plating (x1) 37774 | -4/Factory | Found Prototype Hackware 37775 | -4/Factory | Destroyed 7 combat bots 37893 | -4/Factory | System corruption reached 10% 37959 | -4/Factory | First assault squad dispatched 37993 | -4/Factory | Released all parts (6) 37997 | -4/Factory | Core integrity fell below 50% 38023 | -4/Factory | Lost 18 parts (2p3n6u7w) 38046 | -4/Factory | Entered Research 38046 | -3/Research | Evolved 2 slots: Propulsion x2 38115 | -3/Research | Found Prototype Processor 38115 | -3/Research | Identified Spectral Analyzer 38119 | -3/Research | Found Unknown Device 38119 | -3/Research | Identified Antimissile System 38153 | -3/Research | Identified Exp. System Shield 38243 | -3/Research | Build established: Hacker-Mutant 38296 | -3/Research | First assault squad dispatched 38355 | -3/Research | Lost 5 parts (3n1u1w) 38356 | -3/Research | Core integrity fell below 50% 38382 | -3/Research | Core integrity fell below 20% 38393 | -3/Research | Spotted B-86 Titan 38455 | -3/Research | Discovered new exit (range 7) 38503 | -3/Research | Identified exit to Research 38541 | -3/Research | Identified exit to Armory 38541 | -3/Research | Identified exit to Testing 38582 | -3/Research | Destroyed by H-77 Assassin with Coil Gun Last Messages --------------- Retrieving Zone 7A layout... Downloaded map data. >>Recall(Investigation) Establishing remote squad link... Recalled investigation squad BE93EH4J5O. >>Recall(Reinforcements) Establishing remote squad link... Recalled reinforcement squad N6REZPBRAI. 38542_ Slug penetrates Door. 38542_ Slug penetrates Wall. 38560_ Prototyping Station disabled. 38561_ Acquired Hvy. Treads. 38571_ Penetrated by Slug. 38571_ Slug penetrates Wall. 38571_ Penetrated by Slug. 38571_ Slug penetrates Wall. 38575_ Door malfunctions. 38581_ Slug penetrates Wall. 38582_ Slug penetrates H-77 Assassin. 38582_ Penetrated by Slug. Map ----- +----------------------------------------------------+ | ??????????????????#+#?????????? | | ?????????????????? ?????????? | | ??????????????????# #?????????? | | ??????????????????# #?????????? | | ??????????????????# #???????### | | ??????????????????# #???????# | | ????????########### ####????# | | ????????# #????# | | ????????# #????# | | ????????# < +????# | | ????????# """ #????# | | ############ ""T"" #????# | | # # "" "" #????# | | # # ######## | | # # | | # """ + | | # """ # | | # """ # | | # ####+###+######+#### | | # ## ## # | | # h """ ## ## # | | # h """ ## """"" ## # | | # """ ## """"" ## # | | # ## """"" ##! # | | # ## ## # | | # @ ## ## # | | # ## ## # | | ####+################### # | | ???# ## #??????# # | | ???# ## #??????# # | | ???# ## #??????# # | | ???# + ############## | | ???# #####/##### """T""" # | | ???# #### #???# # | | ???# #???#* ! # | | ???#######p #???# ! ## | | ?????????# #???# ! / | | ########## #???#######+##g#### | | # = # ########## #??? | | # #g ## # g #??? | | # """" #h ## ! + #??? | | # """" # ## ! # g m#??? | | # """" #hg########## #??? | | # """" # #???# #??? | | # """ # g#???# #??? | | # + #???# #??? | | # # g#???# #??? | | ########## ##### #??? | | ????????# #??# | | ????????# #?? | +----------------------------------------------------+ Best States ------------- Heat Dissipation 71 Energy Generation 45 Energy Capacity 600 Matter Stores 300 Matter Capacity 500 Sight Range 24 Robot Scan Range 30 Terrain Scan Range 20 Terrain Scan Density 110 Armor Coverage 2400 Resistance: KI 30 Resistance: TH 10 Resistance: EM 90 Point Defense Rating 240 Weapon Cycling 20 Phase Shifting 10 Evasion (%) 60 Targeting Accuracy 8 Target Analysis 6 Armor Integrity Analysis 33 Recoil Reduction 4 Offensive Hacking 46 Defensive Hacking 16 Relay Coupler Types 62 Relay Coupler Value 2 Item Schematics ----------------- Exp. Sensor Array | -9/Materials | Scanalyzed Hvy. Armor Plating | -7/Factory | Scanalyzed Arm. Wheel | -7/Factory | Scanalyzed Imp. Remote Datajack | -6/Factory | Scanalyzed Med. Reactive Plating | -6/Factory | Scanalyzed Imp. Medium Armor Plating | -6/Factory | Scanalyzed Centrium Leg | -3/Research | Hacked Robot Schematics ------------------ M-13 Machinist | -9/Materials | Hacked P-60 Hacker | -7/Factory | Hacked Fabricated ------------ P-60 Hacker | x2 | -7/Factory P-60 Hacker | x2 | -6/Factory P-60 Hacker | x2 | -5/Factory Med. Reactive Plating | x1 | -4/Factory Alien Tech Used ----------------- None Achievements -------------- None Challenges ------------ None Game ------ Seed GyrokineticTrackerJammer Manual? 0 Play Time 04:02:33 Cumulative 598.7 hours Start 2021.06.20 @ 18:07:12 End 2021.06.22 @ 22:48:02 Sessions 9 Manual Loads 0 Difficulty Rogue Special Mode None Game No. 361 Rogue 361 Adventurer 0 Explorer 0 Win Type - Total 6 Types 4/0/1/0/1/0/0/0/0 Lore% 88 Gallery% 90 Achievement% 71 Wizard Run 0 Options --------- ASCII 0 Keyboard 0 Movement Mouse Keybinds 1 Fullscreen 2 Font 24/Smallcaps Map View 76x50 Tactical HUD 1 Map Filters NONE Filters NONE Steam 1 RUN: 13d8dcfa-fa7a-4832-b1cd-3f2a7b06cb48